Cogmind - Beta 11 *** ADVENTURER MODE // 2022.04.15 @ 04:45:41 // Winter2019/RPGLIKE Player: Odd Result: Destroyed self with Grenade Launcher Performance ------------- Evolutions (1) 500 Regions Visited (6) 1200 Robots Destroyed (70) 350 Value Destroyed (1618) 1618 Prototype IDs (8) 160 Alien Tech Used (0) 0 Bonus (-69) -69 TOTAL SCORE: 3759 Bonus ------- Friendly Fire -69 Cogmind --------- Core Integrity 0/1050 Matter 95/400 Energy 270/300 System Corruption 0% Temperature Cool (33) Movement Walking (120) Location -8/Mines Parts ------- > --- POWER (1) -------- Ion Engine > --- PROPULSION (4) --- Aluminum Leg Aluminum Leg Aluminum Leg > --- UTILITY (4) ------ Medium Matter Pod Structural Scanner Sensor Array > --- WEAPON (3) ------- Particle Cannon Particle Cannon Grenade Launcher > --- INVENTORY (3) ---- Aluminum Leg Heavy EM Pulse Gun Beam Cannon Peak State ------------ > --- POWER ------------ Ion Engine > --- PROPULSION ------- Aluminum Leg Aluminum Leg Aluminum Leg Aluminum Leg > --- UTILITY ---------- Medium Matter Pod Structural Scanner Sensor Array Light Armor Plating > --- WEAPON ----------- Particle Cannon Particle Cannon Shotgun > --- INVENTORY -------- Beam Cannon Grenade Launcher [Rating: 15] Favorites ----------- Power Ion Engine Engine Ion Engine Propulsion Aluminum Leg Leg Aluminum Leg Utility Structural Scanner Device Structural Scanner Storage Medium Matter Pod Protection Light Armor Plating Weapon Particle Cannon Energy Gun Heavy EM Pulse Gun Energy Cannon Particle Cannon Ballistic Gun Light Assault Rifle Launcher Grenade Launcher Build | -11 -10 -10 -9 -9 -9 -8 ------- Run | Scr Mat Min Mat Min Exi Min Slots Evolved 8 | 4 . . 4 . . . Power . | . . . . . . . Propulsion 3 | 1 . . 2 . . . Utility 3 | 2 . . 1 . . . Weapon 2 | 1 . . 1 . . . Parts Attached 31 | 5 5 . 15 2 4 . Power 4 | 1 . . 3 . . . Engine 4 | 1 . . 3 . . . Core . | . . . . . . . Reactor . | . . . . . . . Propulsion 7 | 2 . . 5 . . . Treads . | . . . . . . . Leg 7 | 2 . . 5 . . . Wheel . | . . . . . . . Hover . | . . . . . . . Flight . | . . . . . . . Utility 5 | . 3 . 2 . . . Device 3 | . 2 . 1 . . . Storage 1 | . 1 . . . . . Processor . | . . . . . . . Hackware . | . . . . . . . Protection 1 | . . . 1 . . . Artifact . | . . . . . . . Weapon 15 | 2 2 . 5 2 4 . Energy Gun 2 | . . . 1 1 . . Energy Cannon 7 | . 2 . 3 . 2 . Ballistic Gun 3 | 2 . . 1 . . . Ballistic Cannon . | . . . . . . . Launcher 3 | . . . . 1 2 . Special Weapon . | . . . . . . . Impact Weapon . | . . . . . . . Slashing Weapon . | . . . . . . . Piercing Weapon . | . . . . . . . Special Melee Weapon . | . . . . . . . Unidentified Prototypes 1 | . . . 1 . . . Parts Lost 1 | . . . . . 1 . Power . | . . . . . . . Propulsion . | . . . . . . . Utility 1 | . . . . . 1 . Weapon . | . . . . . . . Highest Loss Streak 1 | . . . . . 1 . To Critical Strikes . | . . . . . . . Average Slot Usage (%) 97 | . 97 100 95 99 98 83 Engine 9 | . 12 12 8 8 8 8 Leg 28 | . 25 25 28 33 32 25 Device 19 | . 23 25 17 16 16 16 Storage 9 | . 10 12 8 8 8 8 Protection 4 | . . . 4 8 6 . Energy Gun 2 | . . . . 5 6 . Energy Cannon 16 | . 12 25 17 15 15 16 Ballistic Gun 4 | . 12 . 7 2 . . Naked Turns . | . . . . . . . Heaviest Build 23 | 7 15 15 23 23 23 20 Greatest Support 40 | 20 20 20 40 40 40 30 Greatest Overweight (x) . | . . . . . . . Average Overweight (x) . | . . . . . . . Largest Inventory Capacity 3 | . 3 3 3 3 3 3 Average Capacity 2 | . 1 3 3 3 3 3 Most Carried 3 | . 3 3 3 3 3 3 Average Carried 2 | . . 3 2 3 3 3 Final Capacity 3 | . 3 3 3 3 3 3 Final Carried 3 | . 3 3 3 3 3 3 Class Distribution -------------------- 43% | Hacker-Skirmisher 40% | Mutant 15% | Skirmisher Dominant Class ---------------- Mutant | -10/Materials Mutant | -10/Mines Skirmisher | -9/Materials Hacker-Skirmisher | -9/Mines Hacker-Skirmisher | -9/Exiles Hacker-Skirmisher | -8/Mines Resources | -11 -10 -10 -9 -9 -9 -8 ----------- Run | Scr Mat Min Mat Min Exi Min Matter Collected 903 | 250 260 9 322 62 . . Remotely . | . . . . . . . Salvage Created 2374 | . 599 73 1028 585 89 . Parts 136 | . 40 6 63 25 . 2 Haulers Intercepted 4 | . 1 . 3 . . . Recyclers Shooed 1 | . 1 . . . . . Parts Field Recycled . | . . . . . . . Retrieved Matter . | . . . . . . . Parts Self-Destructed . | . . . . . . . Prevented . | . . . . . . . Kills | -11 -10 -10 -9 -9 -9 -8 ------- Run | Scr Mat Min Mat Min Exi Min Combat Hostiles Destroyed 48 | . 11 5 18 5 7 2 Guns 16 | . 9 . 5 2 . . Cannons 27 | . 2 5 12 3 5 . AOE 4 | . . . . . 2 2 Classes Destroyed 12 | . 7 2 2 . 1 . Worker 8 | . 2 . 2 4 . . Builder 5 | . 1 1 2 1 . . Tunneler 1 | . . 1 . . . . Hauler 4 | . 1 . 3 . . . Recycler 4 | . 1 . 1 2 . . Operator 1 | . . . 1 . . . Watcher 6 | . 3 . 3 . . . Swarmer 9 | . 3 3 3 . . . Grunt 26 | . 8 . 13 3 . 2 Sentry 4 | . . . 2 2 . . Demolisher 2 | . . 2 . . . . Assembled 7 | . . . . . 7 . Best Kill Streak 7 | . 7 3 7 4 7 2 Combat Bots Only 7 | . 5 3 5 3 7 2 Max Kills in Single Turn 2 | . 1 1 2 2 2 2 Gunslinging . | . . . . . . . Exploded 2 | . . . . . 2 2 Melee . | . . . . . . . Uniques/NPCs Destroyed . | . . . . . . . Combat | -11 -10 -10 -9 -9 -9 -8 -------- Run | Scr Mat Min Mat Min Exi Min Damage Taken 2000 | . 267 137 411 103 1050 32 Core 1518 | . 208 113 290 83 798 26 Absorbed by Shields . | . . . . . . . Redirected to Core 1323 | . 188 78 274 62 701 20 Core Remaining (%) 94 | 100 . 88 . . . . Volleys Fired 207 | . 80 20 50 23 32 2 Largest 3 | . 2 2 3 3 3 3 Hottest 181 | . 120 120 159 181 181 166 Shots Fired 505 | . 160 40 143 63 93 6 Gun 187 | . 110 . 43 20 14 . Cannon 292 | . 50 40 100 39 59 4 Launcher 26 | . . . . 4 20 2 Special . | . . . . . . . Kinetic 166 | . 110 . 43 13 . . Thermal 292 | . 50 40 100 39 59 4 Explosive 26 | . . . . 4 20 2 Electromagnetic 21 | . . . . 7 14 . Robot Hit Streak 22 | . 12 7 15 22 15 13 Robot Miss Streak 3 | . 3 1 2 2 3 . Penetration Max . | . . . . . . . Secondary Targets . | . . . . . . . Shots Hit Robots 307 | . 93 21 84 30 73 6 Core Hits 126 | . 39 8 36 16 22 5 Critical Kills 3 | . 1 1 1 . . . Critical Parts Destroyed . | . . . . . . . Critical Strikes 3 | . 1 1 1 . . . Meltdown 2 | . . 1 1 . . . Destroy 1 | . 1 . . . . . Melee Attacks . | . . . . . . . Impact . | . . . . . . . Slashing . | . . . . . . . Piercing . | . . . . . . . Sneak Attacks . | . . . . . . . Combat Hostiles . | . . . . . . . Follow-up Attacks . | . . . . . . . Damage Inflicted 4227 | . 810 367 1713 647 482 208 Guns 1246 | . 653 . 374 176 43 . Cannons 2614 | . 157 367 1335 471 203 81 Explosions 363 | . . . . . 236 127 Melee . | . . . . . . . Ramming 4 | . . . 4 . . . Kinetic 1187 | . 653 . 374 160 . . Thermal 2614 | . 157 367 1335 471 203 81 Explosive 363 | . . . . . 236 127 Electromagnetic 59 | . . . . 16 43 . Impact . | . . . . . . . Slashing . | . . . . . . . Piercing . | . . . . . . . Highest Corruption 1 | . 1 1 . . . . Average Corruption 1 | . 1 1 . . . . Corruption Purged . | . . . . . . . Corruption Blocked . | . . . . . . . Effects 5 | . 2 3 . . . . Message Errors 2 | . . 2 . . . . Matter Fused 1 | . . 1 . . . . Energy Discharges 1 | . 1 . . . . . Data Loss (minor) 1 | . 1 . . . . . Overload Shots . | . . . . . . . Overflow Damage 22 | . . 15 . 3 . 4 Projectiles 22 | . . 15 . 3 . 4 Explosions . | . . . . . . . Melee . | . . . . . . . Knockbacks . | . . . . . . . Impact . | . . . . . . . Kinetic . | . . . . . . . Secondary . | . . . . . . . Self-Inflicted Damage 35 | . . . . . 16 19 Shots 3 | . . . . . 1 2 Rammed . | . . . . . . . Targets Rammed 1 | . . . 1 . . . Kicked 1 | . . . 1 . . . Crushed . | . . . . . . . Highest Temperature 196 | . . . 196 90 142 33 Average Temperature 50 | . . . 40 30 78 28 Received Heat Transfer 549 | . 174 . 312 45 . 18 Siege Activations . | . . . . . . . Robots Corrupted . | . . . . . . . Combat Hostiles . | . . . . . . . Parts Fried . | . . . . . . . Impact Corruptions . | . . . . . . . Robots Melted 2 | . . 1 1 . . . Combat Hostiles 1 | . . . 1 . . . Parts Melted 12 | . . 3 7 2 . . Heat Transferred 5142 | . 333 777 2442 851 591 148 Parts Sabotaged . | . . . . . . . Parts Stolen . | . . . . . . . Parts Stripped . | . . . . . . . Power Chain Reactions . | . . . . . . . Missiles Intercepted . | . . . . . . . Alert | -11 -10 -10 -9 -9 -9 -8 ------- Run | Scr Mat Min Mat Min Exi Min Peak Influence 260 | . 260 110 241 229 . 27 Initial 79 | . . . 17 79 . . Average 102 | . 96 67 127 119 . 16 Maximum Alert Level 1 | . 1 . 1 1 . . Low Security (%) 81 | 100 89 100 70 67 . 100 Level 1 18 | . 10 . 29 32 . . Level 2 . | . . . . . . . Level 3 . | . . . . . . . Level 4 . | . . . . . . . Level 5 . | . . . . . . . High Security . | . . . . . . . Max Security . | . . . . . . . Squads Dispatched 6 | . 4 . 2 . . . Investigation 6 | . 4 . 2 . . . Extermination . | . . . . . . . Reinforcement . | . . . . . . . Assault . | . . . . . . . Garrison . | . . . . . . . Intercept . | . . . . . . . Searches Triggered . | . . . . . . . Construction Impeded . | . . . . . . . Haulers Reinforced . | . . . . . . . Active Scanning Responses . | . . . . . . . Cargo Convoy Interrupts . | . . . . . . . Stealth | -11 -10 -10 -9 -9 -9 -8 --------- Run | Scr Mat Min Mat Min Exi Min Distress Signals 3 | . . . 3 . . . Communications Jammed . | . . . . . . . Distress Signals . | . . . . . . . Times Spotted 68 | . 16 6 22 5 16 3 Peak Tracking Total 9 | . 4 2 4 3 9 4 Tactical Retreats 3 | . . . 1 . 2 . Traps | -11 -10 -10 -9 -9 -9 -8 ------- Run | Scr Mat Min Mat Min Exi Min Traps Triggered 2 | . 2 . . . . . Indirectly . | . . . . . . . Trap Hack Attempts . | . . . . . . . Triggered . | . . . . . . . Disarmed . | . . . . . . . Reprogrammed 1 | . 1 . . . . . Reused . | . . . . . . . Traps Extracted . | . . . . . . . Installed . | . . . . . . . Triggered . | . . . . . . . Machines | -11 -10 -10 -9 -9 -9 -8 ---------- Run | Scr Mat Min Mat Min Exi Min Machines Disabled 12 | . 1 2 1 1 4 3 Max in Single Turn 3 | . 1 1 1 1 1 3 Machines Sabotaged . | . . . . . . . Garrisons Compromised . | . . . . . . . Overloaded Fab Kills . | . . . . . . . Hacking | -11 -10 -10 -9 -9 -9 -8 --------- Run | Scr Mat Min Mat Min Exi Min Machines Accessed 13 | . 4 . 5 . 4 . Terminals 8 | . 4 . 4 . . . Fabricators . | . . . . . . . Repair Stations . | . . . . . . . Recycling Units . | . . . . . . . Scanalyzers 1 | . . . 1 . . . Garrison Access . | . . . . . . . Total Hacks 88 | . 19 . 20 . 49 . Successful 75 | . 11 . 15 . 49 . Failed 13 | . 8 . 5 . . . Catastrophic . | . . . . . . . Database Lockouts . | . . . . . . . Manual . | . . . . . . . Terminals 36 | . 19 . 17 . . . Fabricators . | . . . . . . . Repair Stations . | . . . . . . . Recycling Units . | . . . . . . . Scanalyzers 3 | . . . 3 . . . Garrison Access . | . . . . . . . Terminal Hacks 72 | . 11 . 12 . 49 . Record 51 | . 2 . . . 49 . Prototype ID Bank 4 | . 1 . 3 . . . Branch Access Points 1 | . . . 1 . . . Emergency Access Points 1 | . . . 1 . . . Alert Level 3 | . 1 . 2 . . . Unreport Threat 2 | . 1 . 1 . . . Locate Traps 1 | . 1 . . . . . Disarm Traps 1 | . 1 . . . . . Reprogram Traps 2 | . 2 . . . . . Dispatch Records 2 | . 1 . 1 . . . Transport Status 1 | . 1 . . . . . Recall Assault 1 | . . . 1 . . . Hauler Manifests 1 | . . . 1 . . . Zone Layout 1 | . . . 1 . . . Fabricator Hacks . | . . . . . . . Repair Station Hacks . | . . . . . . . Recycling Unit Hacks . | . . . . . . . Scanalyzer 3 | . . . 3 . . . Insert Component 1 | . . . 1 . . . Analyze 2 | . . . 2 . . . Garrison Access Hacks . | . . . . . . . Unauthorized Hacks . | . . . . . . . Terminals . | . . . . . . . Fabricators . | . . . . . . . Repair Stations . | . . . . . . . Recycling Units . | . . . . . . . Scanalyzers . | . . . . . . . Garrison Access . | . . . . . . . Data Cores Recovered 1 | . . . 1 . . . Used 1 | . . . 1 . . . Hacking Detections 9 | . 4 . 5 . . . Full Trace Events 7 | . 3 . 4 . . . Feedback Events 1 | . 1 . . . . . Corruption 1 | . 1 . . . . . Feedback Blocked . | . . . . . . . Robot Schematics Acquired . | . . . . . . . Robots Built . | . . . . . . . Authchips . | . . . . . . . Time . | . . . . . . . Total Robot Build Rating . | . . . . . . . Part Schematics Acquired 1 | . . . 1 . . . Parts Built . | . . . . . . . Authchips . | . . . . . . . Time . | . . . . . . . Total Part Build Rating . | . . . . . . . Parts Repaired . | . . . . . . . Time . | . . . . . . . Parts Recycled . | . . . . . . . Recycled Matter . | . . . . . . . Retrieved Matter . | . . . . . . . Retrieved Components . | . . . . . . . Parts Scanalyzed 1 | . . . 1 . . . Part Schematics Acquired 1 | . . . 1 . . . Parts Damaged . | . . . . . . . Bothacking | -11 -10 -10 -9 -9 -9 -8 ------------ Run | Scr Mat Min Mat Min Exi Min Used RIF Installer . | . . . . . . . Robots Hacked . | . . . . . . . Non-combat . | . . . . . . . Combat . | . . . . . . . Robot Hacks Applied . | . . . . . . . Relay Couplers Released . | . . . . . . . Fabnet Peak Effective % . | . . . . . . . Robots Rewired . | . . . . . . . Allies Hacked . | . . . . . . . Hacks Repelled . | . . . . . . . Allies | -11 -10 -10 -9 -9 -9 -8 -------- Run | Scr Mat Min Mat Min Exi Min Total Allies 1 | . . 1 . . . . Largest Group 1 | . . 1 . . . . Highest-Rated Group 31 | . . 31 . . . . Highest-Rated Ally 31 | . . 31 . . . . Total Orders . | . . . . . . . Ally Attacks 5 | . . 5 . . . . Total Damage 63 | . . 63 . . . . Kills 1 | . . 1 . . . . Allies Corrupted . | . . . . . . . Allies Melted . | . . . . . . . Intel | -11 -10 -10 -9 -9 -9 -8 ------- Run | Scr Mat Min Mat Min Exi Min Robot Analysis Total . | . . . . . . . Derelict Logs Recovered 5 | . . 2 . 3 . . Drone Launches . | . . . . . . . Drone Recoveries . | . . . . . . . Exploration | -11 -10 -10 -9 -9 -9 -8 ------------- Run | Scr Mat Min Mat Min Exi Min Turns Passed 3719 | 53 816 559 735 715 836 5 Spaces Moved 2442 | 40 479 405 380 533 604 1 Core 2 | 2 . . . . . . Treads . | . . . . . . . Legs 2440 | 38 479 405 380 533 604 1 Wheels . | . . . . . . . Hover . | . . . . . . . Flight . | . . . . . . . Fastest Speed 50 | 50 120 120 120 120 120 120 Average Speed 119 | 116 120 120 120 120 120 120 Slowest Speed 120 | 120 120 120 120 120 120 120 Overloaded Moves . | . . . . . . . Propulsion Burnouts . | . . . . . . . Robots Hopped . | . . . . . . . Cave-ins Triggered . | . . . . . . . Exploration Rate (%) 51 | 3 67 76 39 80 94 4 Regions Visited 6 Branch Regions 4 Pre-discovered Areas 2 | . . . . 1 1 . Known Exits Taken 3 | . . . 1 1 1 . Unknown Exits Taken 3 | 1 1 1 . . . . Scrap Searched 2 | . . 1 . 1 . . Spaces Dug 18 | . . . . 18 . . Terrain Destroyed 66 | . . 14 . 28 24 . Melee . | . . . . . . . Projectile 2 | . . . . . 2 . AOE 64 | . . 14 . 28 22 . Terrain Rammed . | . . . . . . . Walls Destroyed . | . . . . . . . Machines Disabled . | . . . . . . . Actions | -11 -10 -10 -9 -9 -9 -8 --------- Run | Scr Mat Min Mat Min Exi Min Total 2816 | 44 581 438 548 560 642 3 Wait 100 | . . 11 84 2 3 . Move 2436 | 39 478 404 379 532 603 1 Hop . | . . . . . . . Pick Up 4 | . 4 . . . . . Fast Attach 17 | 5 5 . 6 1 . . Attach 2 | . . . 2 . . . Detach . | . . . . . . . Swap 12 | . . . 7 1 4 . Drop 13 | . 3 . 9 1 . . Fire 207 | . 80 20 50 23 32 2 Melee . | . . . . . . . Ram . | . . . . . . . Kick 1 | . . . 1 . . . Crush . | . . . . . . . Escape Stasis . | . . . . . . . Rewire . | . . . . . . . Trap . | . . . . . . . Miscellaneous 24 | . 11 3 10 . . . Route ------- -11/Scrapyard -10/Materials (discovered 2 exits: *Mat / [*Min]) -10/Mines (discovered 2 exits: *Mat x2) -9/Materials -9/Mines (discovered 2 exits: [*Mat] / *Exi) -9/Exiles (discovered 2 exits: *Min x2) -8/Mines History --------- Turn | Location | Event 1 | -11/Scrapyard | Upgraded with Propulsion slot (x1) 1 | -11/Scrapyard | Upgraded with Utility slot (x2) 1 | -11/Scrapyard | Upgraded with Weapon slot (x1) 13 | -11/Scrapyard | Discovered new exit (range 15) 54 | -11/Scrapyard | Entered Materials 139 | -10/Materials | Discovered new exit (range 16) 282 | -10/Materials | Discovered new exit (range 15) 310 | -10/Materials | Build established: Mutant 531 | -10/Materials | Reached level 2 870 | -10/Materials | Entered Mines 1007 | -10/Mines | Discovered new exit (range 8) 1010 | -10/Mines | Received a Mining Laser from a helpful Derelict 1119 | -10/Mines | A weapon hastily lodged in a ceiling crevice suddenly fell to the ground 1142 | -10/Mines | Assembled infested the area 1167 | -10/Mines | Learned Materials garrison access intel 1211 | -10/Mines | Discovered new exit (range 14) 1228 | -10/Mines | Received a Rocket Launcher from a helpful Derelict 1429 | -10/Mines | Entered Materials 1430 | -9/Materials | Identified exit to Mines 1431 | -9/Materials | Reached level 3 1431 | -9/Materials | Reached level 4 1477 | -9/Materials | Upgraded with Utility slot (x1) 1477 | -9/Materials | Upgraded with Weapon slot (x1) 1651 | -9/Materials | Reached level 5 1651 | -9/Materials | Upgraded with Propulsion slot (x2) 1799 | -9/Materials | Build established: Skirmisher 2015 | -9/Materials | Reached level 6 2164 | -9/Materials | Entered Mines 2213 | -9/Mines | Met a Derelict bent on vengeance 2243 | -9/Mines | Discovered new exit (range 6) 2311 | -9/Mines | Learned location of 1 exit from Materials 2374 | -9/Mines | Build established: Hacker-Skirmisher 2414 | -9/Mines | Learned location of Zion (-6) 2556 | -9/Mines | Identified exit to Exiles 2879 | -9/Mines | Entered Exiles 2880 | -9/Exiles | Identified exit to Mines 2881 | -9/Exiles | Reached level 7 2927 | -9/Exiles | Met 8R-AWN 2944 | -9/Exiles | Met EX-HEX 2981 | -9/Exiles | Met EX-BIN 3106 | -9/Exiles | Met EX-DEC 3171 | -9/Exiles | Discovered exit to Mines (range 10) 3261 | -9/Exiles | Visited The Gauntlet 3512 | -9/Exiles | Attacked by the Exiles 3569 | -9/Exiles | Destroyed 7 combat bots 3592 | -9/Exiles | Core integrity fell below 50% 3661 | -9/Exiles | Core integrity fell below 20% 3715 | -9/Exiles | Entered Mines 3720 | -8/Mines | Destroyed self with Grenade Launcher Last Messages --------------- 03646_ The unstable cave ceiling collapses. 03650_ HV Slug penetrates Machine. 03650_ Machine disabled. 03650_ HV Slug penetrates Machine. 03650_ Machine disabled. 03650_ HV Slug penetrates Wall. 03653_ The unstable cave ceiling collapses. 03654_ Penetrated by HV Slug. 03654_ HV Slug penetrates Machine. 03654_ Penetrated by HV Slug. 03654_ HV Slug penetrates Machine. 03659_ The unstable cave ceiling collapses. 03662_ Aluminum Leg blasted off. 03664_ Penetrated by HV Slug. A strange signal echoes through the mines. LOCATION=MINES GOAL=ESCAPE 03717_ Core Extractor disabled. 03720_ Destroyed Lgt. Nuclear Core. 03720_ G-47 Trooper destroyed. Map ----- +----------------------------------------------------+ | | | | | | | | | | | | | | | | | | | | | | | | | | | | | ??????????????????????????????? | | ??????????????????????????????? | | ??????????????????????????????? | | ??????????????????????????????? | | ??????????????????????????????? | | ??????????????????????????????? | | ??????????????????????????????? | | ??????????????????????????????? | | ?#############????????????????? | | ?#############????????????????? | | ?## l ##????????????????? | | ?## @ "" ##????????????????? | | ?## ##????????????????? | | ?## ##????????????????? | | ?## =%%! ##????????????????? | | ?## "" ##????????????????? | | ?## " ##????????????????? | | ?## " " """ ##????????????????? | | ?## ##????????????????? | | ?######## ####????????????????? | | ?######## ####????????????????? | | ????????# ??????????????????? | | ????????### ??????????????????? | | ????????### ??????????????????? | | ??????????????????????????????? | | ??????????????????????????????? | | ??????????????????????????????? | | ??????????????????????????????? | | ??????????????????????????????? | | ??????????????????????????????? | | ??????????????????????????????? | | ??????????????????????????????? | | ??????????????????????????????? | | ??????????????????????????????? | | ??????????????????????????????? | | ??????????????????????????????? | +----------------------------------------------------+ Best States ------------- Heat Dissipation 55 Energy Generation 20 Energy Capacity 300 Matter Stores 400 Matter Capacity 400 Sight Range 19 Robot Scan Range 14 Terrain Scan Density 10 Armor Coverage 150 Resistance: KI 40 Resistance: TH 20 Resistance: EX 20 Resistance: EM 20 Resistance: I 20 Resistance: S 20 Resistance: P 20 Evasion (%) 55 Offensive Hacking 20 Item Schematics ----------------- Grenade Launcher | -9/Materials | Scanalyzed Robot Schematics ------------------ None Fabricated ------------ Nothing Alien Tech Used ----------------- None Achievements -------------- I Survived The Infestation Challenges ------------ None RPGLIKE | -11 -10 -10 -9 -9 -9 -8 --------- Run | Scr Mat Min Mat Min Exi Min Levels Raised 6 | . 1 . 4 . 1 . XP Earned 13878 | 4000 1515 1190 5088 1050 200 835 XP Spent 12985 | 3800 1500 . 5780 . 1905 . Upgrades 37 | 12 3 . 17 . 5 . Propulsion Slot 3 | 1 . . 2 . . . Utility Slot 3 | 2 . . 1 . . . Weapon Slot 2 | 1 . . 1 . . . Core Integrity 9 | . . . 8 . 1 . Heat Dissipation 5 | 5 . . . . . . Energy Generation 2 | 2 . . . . . . Energy Storage 1 | 1 . . . . . . Inventory Capacity 3 | . 3 . . . . . Sight Range 3 | . . . 3 . . . Hack Attack % 2 | . . . 2 . . . KI Resistance % 4 | . . . . . 4 . Protomatter Created 399 | . 147 17 185 . . 50 Integrity Restored 467 | . 208 46 213 . . . Core 467 | . 208 46 213 . . . Protomatter Decayed 200 | . 77 10 113 . . . Game ------ Seed HelicalThrusterCleaver Manual? 0 Play Time 00:38:50 Cumulative 25.3 hours Start 2022.04.15 @ 04:05:29 End 2022.04.15 @ 04:45:41 Sessions 1 Manual Loads 0 Difficulty Adventurer Special Mode Winter2019/RPGLIKE Game No. 16 Rogue 0 Adventurer 16 Explorer 0 Win Type - Total 1 Types 1/0/0/0/0/0/0/0/0 Lore% 23 Gallery% 29 Achievement% 26 Wizard Run 0 Options --------- ASCII 0 Keyboard 0 Movement Mouse Keybinds 0 Fullscreen 1 Font 18/Terminus Map View 76x50 Tactical HUD 1 Map Filters NONE Filters NONE Steam 1 RUN: 2c9367a6-8cba-4f1b-b796-128617bad355